Cogmind - Beta 13 X1 @@@ ROGUE MODE // 2023.07.03 @ 15:42:10 Player: biogoob Result: Destroyed by 6J-190(R) with Subdweller Laser Performance ------------- Evolutions (0) 0 Regions Visited (3) 600 Robots Destroyed (14) 70 Value Destroyed (406) 406 Prototype IDs (0) 0 Alien Tech Used (0) 0 Bonus (0) 0 TOTAL SCORE: 1076 Bonus ------- None Cogmind --------- Core Integrity 0/250 Matter 120/300 Energy 98/100 System Corruption 0% Temperature Cool (12) Movement Core (50) Location -10/Subcaves Parts ------- > --- POWER (1) -------- (None) > --- PROPULSION (2) --- (None) > --- UTILITY (2) ------ (None) > --- WEAPON (2) ------- (None) > --- INVENTORY (5) ---- Compact Wheel Compact Wheel Makeshift Armor Plating Light Assault Rifle Peak State ------------ > --- POWER ------------ Ion Engine > --- PROPULSION ------- Improved Aluminum Leg Improved Aluminum Leg > --- UTILITY ---------- Small Storage Unit Targeting Computer > --- WEAPON ----------- Particle Gun Light Assault Rifle > --- INVENTORY -------- Light Ion Engine Aluminum Leg Improved Aluminum Leg Compact Wheel Compact Wheel Makeshift Armor Plating Light Assault Rifle Grenade Launcher [Rating: 11] Favorites ----------- Power Ion Engine Engine Ion Engine Propulsion Improved Aluminum Leg Leg Improved Aluminum Leg Utility Small Storage Unit Device Heat Sink Storage Small Storage Unit Processor Targeting Computer Weapon Particle Gun Energy Gun Particle Gun Ballistic Gun Light Assault Rifle Launcher Grenade Launcher Build | -11 -10 -10 -10 ------- Run | Jun Mat Min Sub Slots Evolved . | . . . . Power . | . . . . Propulsion . | . . . . Utility . | . . . . Weapon . | . . . . Parts Attached 14 | . 6 2 6 Power 3 | . 1 . 2 Engine 3 | . 1 . 2 Core . | . . . . Reactor . | . . . . Propulsion 4 | . 2 . 2 Treads . | . . . . Leg 4 | . 2 . 2 Wheel . | . . . . Hover . | . . . . Flight . | . . . . Utility 4 | . 2 2 . Device 1 | . 1 . . Storage 1 | . . 1 . Processor 2 | . 1 1 . Hackware . | . . . . Protection . | . . . . Artifact . | . . . . Weapon 3 | . 1 . 2 Energy Gun 1 | . 1 . . Energy Cannon . | . . . . Ballistic Gun 1 | . . . 1 Ballistic Cannon . | . . . . Launcher 1 | . . . 1 Special Weapon . | . . . . Impact Weapon . | . . . . Slashing Weapon . | . . . . Piercing Weapon . | . . . . Special Melee Weapon . | . . . . Unidentified Prototypes . | . . . . Parts Lost 6 | . . . 6 Power 2 | . . . 2 Propulsion 2 | . . . 2 Utility . | . . . . Weapon 2 | . . . 2 Highest Loss Streak 3 | . . . 3 To Critical Strikes . | . . . . Average Slot Usage (%) 99 | . 99 100 98 Engine 13 | . 14 14 13 Leg 27 | . 28 28 27 Device 4 | . 10 1 . Storage 15 | . 14 16 14 Processor 8 | . 3 10 14 Energy Gun 14 | . 14 14 14 Ballistic Gun 12 | . 14 14 7 Launcher 1 | . . . 5 Naked Turns 1 | . . . 1 Heaviest Build 18 | 11 15 18 14 Greatest Support 26 | 20 26 26 26 Greatest Overweight (x) . | . . . . Average Overweight (x) . | . . . . Largest Inventory Capacity 8 | . 8 8 8 Average Capacity 7 | . 8 8 7 Most Carried 8 | . 8 8 8 Average Carried 7 | . 7 7 6 Final Capacity 8 | 8 8 8 5 Final Carried 8 | 6 8 8 4 Class Distribution -------------------- 100% | Mutant Dominant Class ---------------- Mutant | -10/Materials Mutant | -10/Mines Mutant | -10/Subcaves Resources | -11 -10 -10 -10 ----------- Run | Jun Mat Min Sub Matter Collected 400 | 200 75 92 33 Remotely . | . . . . Salvage Created 344 | . 236 31 77 Parts 27 | . 15 6 6 Haulers Intercepted . | . . . . Recyclers Shooed . | . . . . Parts Field Recycled . | . . . . Retrieved Matter . | . . . . Parts Self-Destructed 6 | . . . 6 Prevented . | . . . . Kills | -11 -10 -10 -10 ------- Run | Jun Mat Min Sub Combat Hostiles Destroyed 12 | . 7 . 5 Guns 9 | . 7 . 2 AOE 3 | . . . 3 Classes Destroyed 4 | . 2 1 1 Tunneler 2 | . . 2 . Swarmer 3 | . 3 . . Grunt 4 | . 4 . . Subdweller 5 | . . . 5 Best Kill Streak 3 | . 3 1 2 Combat Bots Only 3 | . 3 . 2 Max Kills in Single Turn 2 | . 2 1 1 Gunslinging 1 | . 1 . . Exploded 1 | . . . 1 Melee . | . . . . Uniques/NPCs Destroyed . | . . . . Combat | -11 -10 -10 -10 -------- Run | Jun Mat Min Sub Damage Taken 1035 | . 179 . 856 Core 259 | . 34 . 225 Absorbed by Shields . | . . . . Core Remaining (%) 100 | 100 . . . Volleys Fired 55 | . 15 2 38 Largest 2 | . 2 2 2 Hottest 85 | . 85 85 85 Shots Fired 94 | . 30 4 60 Gun 78 | . 30 4 44 Cannon . | . . . . Launcher 16 | . . . 16 Special . | . . . . Kinetic 39 | . 15 2 22 Thermal 39 | . 15 2 22 Explosive 16 | . . . 16 Electromagnetic . | . . . . Robot Hit Streak 37 | . 12 6 37 Robot Miss Streak 1 | . 1 . 1 Penetration Max . | . . . . Secondary Targets 2 | . 1 . 1 Max Gunslinging Chain 1 | . 1 . 1 Shots Hit Robots 71 | . 23 2 46 Core Hits 31 | . 13 3 15 Critical Kills . | . . . . Critical Parts Destroyed . | . . . . Critical Strikes . | . . . . Melee Attacks . | . . . . Impact . | . . . . Slashing . | . . . . Piercing . | . . . . Sneak Attacks . | . . . . Combat Hostiles . | . . . . Follow-up Attacks . | . . . . Damage Inflicted 1250 | . 276 28 946 Guns 772 | . 276 27 469 Cannons . | . . . . Explosions 477 | . . . 477 Melee . | . . . . Ramming 1 | . . 1 . Kinetic 248 | . 77 . 171 Thermal 524 | . 199 27 298 Explosive 477 | . . . 477 Electromagnetic . | . . . . Impact . | . . . . Slashing . | . . . . Piercing . | . . . . Highest Corruption . | . . . . Average Corruption . | . . . . Corruption Purged . | . . . . Corruption Blocked . | . . . . Overload Shots . | . . . . Overflow Damage 7 | . . . 7 Projectiles . | . . . . Explosions 7 | . . . 7 Melee . | . . . . Knockbacks . | . . . . Impact . | . . . . Kinetic . | . . . . Secondary . | . . . . Self-Inflicted Damage 103 | . . . 103 Shots 7 | . . . 7 Rammed . | . . . . Targets Rammed 1 | . . 1 . Kicked 1 | . . 1 . Crushed . | . . . . Highest Temperature 139 | . 139 44 22 Average Temperature 28 | . 49 24 6 Received Heat Transfer 243 | . 72 . 171 Siege Activations . | . . . . Robots Corrupted . | . . . . Combat Hostiles . | . . . . Parts Fried . | . . . . Impact Corruptions . | . . . . Robots Melted . | . . . . Combat Hostiles . | . . . . Parts Melted 2 | . . . 2 Heat Transferred 1332 | . 518 74 740 Parts Sabotaged . | . . . . Parts Stolen . | . . . . Parts Stripped . | . . . . Power Chain Reactions . | . . . . Missiles Intercepted . | . . . . Alert | -11 -10 -10 -10 ------- Run | Jun Mat Min Sub Peak Influence 260 | . 260 33 . Initial 23 | . . 23 . Average 64 | . 115 22 . Maximum Alert Level 1 | . 1 . . Low Security (%) 96 | . 92 100 . Level 1 3 | . 7 . . Level 2 . | . . . . Level 3 . | . . . . Level 4 . | . . . . Level 5 . | . . . . High Security . | . . . . Max Security . | . . . . Squads Dispatched . | . . . . Investigation . | . . . . Extermination . | . . . . Reinforcement . | . . . . Assault . | . . . . Garrison . | . . . . Intercept . | . . . . Searches Triggered . | . . . . Construction Impeded . | . . . . Haulers Reinforced . | . . . . Active Scanning Responses . | . . . . Cargo Convoy Interrupts . | . . . . Stealth | -11 -10 -10 -10 --------- Run | Jun Mat Min Sub Distress Signals 2 | . 2 . . Communications Jammed . | . . . . Distress Signals . | . . . . Times Spotted 25 | . 15 2 8 Peak Tracking Total 5 | . 5 2 2 Tactical Retreats 3 | . 3 . . Traps | -11 -10 -10 -10 ------- Run | Jun Mat Min Sub Traps Triggered . | . . . . Indirectly . | . . . . Trap Hack Attempts . | . . . . Triggered . | . . . . Disarmed . | . . . . Reprogrammed . | . . . . Reused . | . . . . Traps Extracted . | . . . . Installed . | . . . . Triggered . | . . . . Machines | -11 -10 -10 -10 ---------- Run | Jun Mat Min Sub Machines Disabled . | . . . . Max in Single Turn . | . . . . Machines Repaired . | . . . . Machines Sabotaged . | . . . . Overloaded Fab Kills . | . . . . Hacking | -11 -10 -10 -10 --------- Run | Jun Mat Min Sub Machines Accessed . | . . . . Terminals . | . . . . Fabricators . | . . . . Repair Stations . | . . . . Recycling Units . | . . . . Scanalyzers . | . . . . Garrison Access . | . . . . Total Hacks . | . . . . Successful . | . . . . Failed . | . . . . Catastrophic . | . . . . Database Lockouts . | . . . . Manual . | . . . . Terminals . | . . . . Fabricators . | . . . . Repair Stations . | . . . . Recycling Units . | . . . . Scanalyzers . | . . . . Garrison Access . | . . . . Terminal Hacks . | . . . . Fabricator Hacks . | . . . . Repair Station Hacks . | . . . . Recycling Unit Hacks . | . . . . Scanalyzer . | . . . . Garrison Access Hacks . | . . . . Unauthorized Hacks . | . . . . Terminals . | . . . . Fabricators . | . . . . Repair Stations . | . . . . Recycling Units . | . . . . Scanalyzers . | . . . . Garrison Access . | . . . . Data Cores Recovered . | . . . . Used . | . . . . Hacking Detections . | . . . . Full Trace Events . | . . . . Feedback Events . | . . . . Feedback Blocked . | . . . . Robot Schematics Acquired . | . . . . Robots Built . | . . . . Authchips . | . . . . Time . | . . . . Total Robot Build Rating . | . . . . Part Schematics Acquired . | . . . . Parts Built . | . . . . Authchips . | . . . . Time . | . . . . Total Part Build Rating . | . . . . Parts Repaired . | . . . . Time . | . . . . Parts Recycled . | . . . . Recycled Matter . | . . . . Retrieved Matter . | . . . . Retrieved Components . | . . . . Parts Scanalyzed . | . . . . Part Schematics Acquired . | . . . . Parts Damaged . | . . . . Bothacking | -11 -10 -10 -10 ------------ Run | Jun Mat Min Sub Used RIF Installer . | . . . . Robots Hacked . | . . . . Non-combat . | . . . . Combat . | . . . . Robot Hacks Applied . | . . . . Relay Couplers Released . | . . . . Fabnet Peak Effective % . | . . . . Robots Rewired . | . . . . Allies Hacked . | . . . . Hacks Repelled . | . . . . Allies | -11 -10 -10 -10 -------- Run | Jun Mat Min Sub Total Allies . | . . . . Largest Group . | . . . . Highest-Rated Group . | . . . . Highest-Rated Ally . | . . . . Total Orders . | . . . . Ally Attacks . | . . . . Total Damage . | . . . . Kills . | . . . . Allies Corrupted . | . . . . Allies Melted . | . . . . Intel | -11 -10 -10 -10 ------- Run | Jun Mat Min Sub Robot Analysis Total . | . . . . Derelict Logs Recovered 1 | . . 1 . Drone Launches . | . . . . Drone Recoveries . | . . . . Exploration | -11 -10 -10 -10 ------------- Run | Jun Mat Min Sub Turns Passed 1185 | . 413 505 267 Spaces Moved 682 | 1 145 401 135 Core 4 | . . . 4 Treads . | . . . . Legs 678 | 1 145 401 131 Wheels . | . . . . Hover . | . . . . Flight . | . . . . Fastest Speed 50 | 120 120 120 50 Average Speed 119 | 120 120 120 117 Slowest Speed 120 | 120 120 120 120 Overloaded Moves . | . . . . Propulsion Burnouts . | . . . . Robots Hopped . | . . . . Cave-ins Triggered . | . . . . Exploration Rate (%) 30 | 2 35 72 12 Regions Visited 3 Branch Regions 2 Pre-discovered Areas 1 | . . 1 . Known Exits Taken . | . . . . Unknown Exits Taken 3 | 1 1 1 . Scrap Searched 2 | . . 1 1 Spaces Dug . | . . . . Terrain Destroyed 78 | . . . 78 Melee . | . . . . Projectile . | . . . . AOE 78 | . . . 78 Terrain Rammed . | . . . . Walls Destroyed . | . . . . Machines Disabled . | . . . . Actions | -11 -10 -10 -10 --------- Run | Jun Mat Min Sub Total 967 | . 359 421 187 Wait 205 | . 187 12 6 Move 679 | . 144 400 135 Hop . | . . . . Pick Up 4 | . 2 1 1 Fast Attach 5 | . 2 2 1 Attach 4 | . . . 4 Detach 1 | . 1 . . Swap 5 | . 4 . 1 Drop 8 | . 4 3 1 Fire 55 | . 15 2 38 Melee . | . . . . Ram . | . . . . Kick 1 | . . 1 . Crush . | . . . . Escape Stasis . | . . . . Rewire . | . . . . Trap . | . . . . Miscellaneous . | . . . . Route ------- -11/Junkyard -10/Materials -10/Mines (discovered 2 exits: [*Mat] / [*Sub]) -10/Subcaves History --------- Turn | Location | Event 1 | -11/Junkyard | Discovered new exit (range 0) 1 | -11/Junkyard | Entered Materials 309 | -10/Materials | Build established: Mutant 400 | -10/Materials | Discovered new exit (range 7) 414 | -10/Materials | Entered Mines 489 | -10/Mines | Learned location of Mines (-8) 492 | -10/Mines | Discovered new exit (range 2) 542 | -10/Mines | Met a Derelict bent on vengeance 544 | -10/Mines | Joined a pair of Derelicts in attacking an 0b10 outpost 902 | -10/Mines | Discovered new exit (range 15) 919 | -10/Mines | Entered Subcaves 1088 | -10/Subcaves | Ambushed by Subdweller buried in earth 1090 | -10/Subcaves | Ambushed by Subdweller buried in earth 1110 | -10/Subcaves | Core integrity fell below 50% 1129 | -10/Subcaves | Lost 3 parts (2n1w) 1147 | -10/Subcaves | A swath of the cavern ceiling suddenly collapsed 1147 | -10/Subcaves | Core integrity fell below 20% 1185 | -10/Subcaves | Released all parts (6) 1186 | -10/Subcaves | Destroyed by 6J-190(R) with Subdweller Laser Last Messages --------------- 01115_ Acquired 12 matter. 01118_ Acquired 8 matter. 01119_ The unstable cave ceiling collapses. 01143_ Lgt. Ion Engine destroyed. 01144_ Disposable Heat Sink melted. 01144_ BO-O2R(R) destroyed. 01147_ N0-ECW(R) crushed by falling debris. 01147_ Sub. Laser crushed. A swath of the cavern ceiling suddenly collapses. 01147_ The unstable cave ceiling collapses. 01151_ N0-ECW(R) destroyed. 01154_ The unstable cave ceiling collapses. 01154_ Acquired Sub. Power Source. 01184_ Particle Gun destroyed. 01185_ Released Sub. Power Source. 01185_ Released Lgt. Assault Rifle. 01185_ Released Imp. Aluminum Leg. 01185_ Released Aluminum Leg. 01185_ Released Sml. Storage Unit. 01185_ Released Targeting Computer. Map ----- +----------------------------------------------------+ | ???????????????????????????????????????????# #?? | | ???????????????????????????????????????????## #?? | | ???????????????????????????????????????????## #?? | | ??????????????????????????????????????????## ### | | ??????????????????????????????????????????# # | | ????????????????????????????? ?????????#"""# # | | ??????????????????????????? ????????? ""## # # | | ?????????????????????????? ???????? ""## " | | ?????????????????????? ?# #??????? ""## # # | | ????????????????????# ## ##????#"" "# # | | ????????????????????# #????#"" ""# ## | | ????????????????????? #????"" "## | | ?????????????????????? ##? """"#### # | | ?????????????????? ????# #??""""## # | | ?????????????????? ??# ???""""# & & ## | | ?????????????????? ## #????"" # # # | | ????????????????? #?????# | | ??????????????????? ####### ## | | ????????????????????? # # | | ??????????????????????????# # # | | ?????????????????????????##R ### | | ????????????????????????## R ######## #?? | | ???????????????????????## ##???# ## #?? | | ???????????????????????# ##????## # ## ####?? | | ??????????????????##???# ##?????# ?### #???? | | ????????????????### ?## @ ##?????### ???? #???? | | ???????????????## ## ##?????# ????? ???? | | ???????????????# ##??????# ????? # ??? | | ???????????????## ! ### ##??## ??????###?? | | ????????????????#### =*[ #???## ???????????? | | ???????????????????# ##= ##????## ???????????? | | ???????????????????##?# ##??????#????????????? | | ?????????????????????# ###????????????????????? | | ????????????????????# ##??????????????????????? | | ????????????????????# ##???????????????????????? | | ????????????????????#####????????????????????????? | | ?????????????????????????????????????????????????? | | ?????????????????????????????????????????????????? | | ?????????????????????????????????????????????????? | | ?????????????????????????????????????????????????? | | ?????????????????????????????????????????????????? | | ?????????????????????????????????????????????????? | | ?????????????????????????????????????????????????? | | ?????????????????????????????????????????????????? | | ?????????????????????????????????????????????????? | | ?????????????????????????????????????????????????? | | ?????????????????????????????????????????????????? | | ?????????????????????????????????????????????????? | | ?????????????????????????????????????????????????? | | ?????????????????????????????????????????????????? | +----------------------------------------------------+ Best States ------------- Heat Dissipation 35 Energy Generation 15 Energy Capacity 250 Matter Stores 322 Matter Capacity 500 Sight Range 16 Terrain Scan Density 10 Evasion (%) 55 Targeting Accuracy 5 Item Schematics ----------------- None Robot Schematics ------------------ None Fabricated ------------ Nothing Alien Tech Used ----------------- None Achievements -------------- None Challenges ------------ None Game ------ Seed ReactionCoolantPurifier Manual? 0 Play Time 00:10:29 Cumulative 121.0 hours Start 2023.07.03 @ 15:24:29 End 2023.07.03 @ 15:42:10 Sessions 1 Manual Loads 0 Difficulty Rogue Special Mode None Game No. 144 Rogue 121 Adventurer 19 Explorer 4 Win Type - Total 1 Types 0/0/1/0/0/0/0/0/0 Lore% 49 Gallery% 54 Achievement% 46 Wizard Run 0 Options --------- ASCII 1 Keyboard 1 Movement Vi Keybinds 0 Fullscreen 2 Font 18/SmallcapsGlow Map View 76x50 Tactical HUD 1 Map Filters SATURATION(80) Filters SATURATION(80) Steam 1 RUN: 87d0268b-bd12-4675-87af-f2fd0230e00c